Cogmind - Beta 11 @@@ ROGUE MODE // 2022.04.14 @ 13:25:20 Player: ILikeVoltron Result: Destroyed by G-50 Soldier with Heavy Laser Performance ------------- Evolutions (1) 500 Regions Visited (5) 1000 Robots Destroyed (24) 120 Value Destroyed (716) 716 Prototype IDs (2) 40 Alien Tech Used (0) 0 Bonus (300) 300 TOTAL SCORE: 2676 Bonus ------- Aligned with FarCom 300 Cogmind --------- Core Integrity 0/400 Matter 276/300 Energy 253/265 System Corruption 1% Temperature Danger (406) Movement Core (450) Ox8 Location -8/Mines Parts ------- > --- POWER (1) -------- Improved Ion Engine > --- PROPULSION (2) --- (None) > --- UTILITY (4) ------ Medium Storage Unit Signal Interpreter Improved Light Armor Plating Authchip [Power] > --- WEAPON (2) ------- Particle Gun Improved Light Cannon > --- INVENTORY (10) --- Light Ion Engine Aluminum Leg High-capacity Matter Pod (200) Seismic Detector Cloak of Protection Authchip [R/NC] Authchip [Weapon] Peak State ------------ > --- POWER ------------ Light Nuclear Core > --- PROPULSION ------- Wheel Compact Wheel > --- UTILITY ---------- Medium Storage Unit Signal Interpreter Improved Light Armor Plating Authchip [Power] > --- WEAPON ----------- Light Assault Rifle Assault Cannon > --- INVENTORY -------- Improved Ion Engine Light Treads Aluminum Leg Seismic Detector Improved Light Armor Plating Authchip [R/NC] Authchip [Weapon] Improved Light Cannon Rocket Launcher Mining Laser [Rating: 20] Favorites ----------- Power Improved Ion Engine Engine Improved Ion Engine Power Core Light Nuclear Core Propulsion Aluminum Leg Treads Light Treads Leg Aluminum Leg Wheel Wheel Utility Medium Storage Unit Device Seismic Detector Storage Medium Storage Unit Processor Signal Interpreter Hackware Authchip [Power] Protection Power Shielding Weapon Light Assault Rifle Energy Gun Particle Gun Ballistic Gun Light Assault Rifle Ballistic Cannon Assault Cannon Launcher Grenade Launcher Special Weapon Mining Laser Build | -11 -10 -9 -9 -9 -8 ------- Run | Scr Mat Mat Min Exi Min Slots Evolved 2 | . . 2 . . . Power . | . . . . . . Propulsion . | . . . . . . Utility 2 | . . 2 . . . Weapon . | . . . . . . Parts Attached 39 | . 14 13 7 . 5 Power 8 | . 2 3 2 . 1 Engine 6 | . 1 3 1 . 1 Core 2 | . 1 . 1 . . Reactor . | . . . . . . Propulsion 9 | . 4 3 2 . . Treads 1 | . . . 1 . . Leg 5 | . 4 1 . . . Wheel 3 | . . 2 1 . . Hover . | . . . . . . Flight . | . . . . . . Utility 11 | . 3 6 1 . 1 Device 2 | . . 2 . . . Storage 2 | . 1 . 1 . . Processor 1 | . . 1 . . . Hackware 1 | . . 1 . . . Protection 5 | . 2 2 . . 1 Artifact . | . . . . . . Weapon 11 | . 5 1 2 . 3 Energy Gun 1 | . . . . . 1 Energy Cannon . | . . . . . . Ballistic Gun 3 | . 3 . . . . Ballistic Cannon 4 | . 1 1 1 . 1 Launcher 2 | . 1 . 1 . . Special Weapon 1 | . . . . . 1 Impact Weapon . | . . . . . . Slashing Weapon . | . . . . . . Piercing Weapon . | . . . . . . Special Melee Weapon . | . . . . . . Unidentified Prototypes . | . . . . . . Parts Lost 12 | . . 3 7 . 2 Power 2 | . . 1 1 . . Propulsion 4 | . . 1 2 . 1 Utility 2 | . . 1 1 . . Weapon 4 | . . . 3 . 1 Highest Loss Streak 7 | . . 2 7 . 2 To Critical Strikes . | . . . . . . Average Slot Usage (%) 80 | . 95 94 69 55 76 Engine 7 | . 9 9 8 . 9 Core 2 | . 4 1 1 . . Leg 12 | . 28 17 . . . Wheel 6 | . . 4 12 11 10 Device 1 | . . 8 . . . Storage 15 | . 14 11 14 22 19 Processor 6 | . . 6 11 11 11 Hackware 5 | . . 2 11 11 11 Protection 5 | . 9 10 2 . 2 Ballistic Gun 12 | . 26 17 2 . . Ballistic Cannon 2 | . . 4 2 . 3 Special Weapon 1 | . . . . . 8 Naked Turns . | . . . . . . Heaviest Build 27 | 11 21 27 26 17 27 Greatest Support 26 | 20 20 26 26 10 10 Greatest Overweight (x) 4 | . 1 2 4 1 2 Average Overweight (x) . | . . . . 1 1 Largest Inventory Capacity 10 | 8 10 10 10 10 10 Average Capacity 9 | 8 8 10 10 10 10 Most Carried 10 | 6 10 10 10 10 10 Average Carried 9 | 6 8 9 9 9 7 Final Capacity 10 | 8 10 10 10 10 10 Final Carried 10 | 6 10 10 9 10 7 Class Distribution -------------------- 83% | Mutant 16% | Scavenger-Mutant Dominant Class ---------------- Mutant | -10/Materials Scavenger-Mutant | -9/Materials Mutant | -9/Mines Mutant | -9/Exiles Mutant | -8/Mines Resources | -11 -10 -9 -9 -9 -8 ----------- Run | Scr Mat Mat Min Exi Min Matter Collected 987 | 200 216 226 265 . 80 Remotely . | . . . . . . Salvage Created 706 | . 278 265 86 . 77 Parts 48 | . 24 18 4 . 2 Haulers Intercepted 1 | . . 1 . . . Recyclers Shooed 1 | . . 1 . . . Parts Field Recycled . | . . . . . . Retrieved Matter . | . . . . . . Parts Self-Destructed . | . . . . . . Prevented . | . . . . . . Kills | -11 -10 -9 -9 -9 -8 ------- Run | Scr Mat Mat Min Exi Min Combat Hostiles Destroyed 21 | . 8 7 4 . 2 Guns 13 | . 7 4 1 . 1 Cannons 6 | . . 3 2 . 1 AOE 2 | . 1 . 1 . . Classes Destroyed 7 | . 4 2 1 . . Worker 1 | . 1 . . . . Hauler 1 | . . 1 . . . Watcher 1 | . 1 . . . . Swarmer 6 | . 3 3 . . . Grunt 11 | . 5 1 3 . 2 Sentry 3 | . . 3 . . . Demolisher 1 | . . . 1 . . Best Kill Streak 5 | . 5 5 3 . 2 Combat Bots Only 4 | . 4 3 3 . 2 Max Kills in Single Turn 2 | . 2 2 1 . 1 Gunslinging . | . . . . . . Exploded 1 | . 1 . 1 . . Melee . | . . . . . . Uniques/NPCs Destroyed . | . . . . . . Combat | -11 -10 -9 -9 -9 -8 -------- Run | Scr Mat Mat Min Exi Min Damage Taken 2444 | . 547 541 1019 . 337 Core 485 | . 80 56 280 . 69 Absorbed by Shields . | . . . . . . Redirected to Shielding 10 | . 10 . . . . Core Remaining (%) 84 | 100 68 . . . . Volleys Fired 118 | . 38 40 22 . 18 Largest 2 | . 2 2 2 . 2 Hottest 104 | . 40 64 64 . 104 Shots Fired 211 | . 72 78 33 . 28 Gun 155 | . 68 66 11 . 10 Cannon 45 | . 2 12 17 . 14 Launcher 7 | . 2 . 5 . . Special 4 | . . . . . 4 Kinetic 190 | . 70 78 28 . 14 Thermal 14 | . . . . . 14 Explosive 7 | . 2 . 5 . . Electromagnetic . | . . . . . . Robot Hit Streak 20 | . 9 20 6 . 12 Robot Miss Streak 5 | . 5 3 2 . 3 Penetration Max . | . . . . . . Secondary Targets 2 | . 2 . . . . Max Gunslinging Chain 1 | . 1 . . . . Shots Hit Robots 138 | . 44 53 24 . 17 Core Hits 58 | . 23 15 14 . 6 Critical Kills . | . . . . . . Critical Parts Destroyed . | . . . . . . Critical Strikes 2 | . . . 2 . . Blast 2 | . . . 2 . . Melee Attacks . | . . . . . . Impact . | . . . . . . Slashing . | . . . . . . Piercing . | . . . . . . Sneak Attacks . | . . . . . . Combat Hostiles . | . . . . . . Follow-up Attacks . | . . . . . . Damage Inflicted 1716 | . 449 519 434 . 314 Guns 892 | . 367 362 55 . 108 Cannons 662 | . . 157 299 . 206 Explosions 162 | . 82 . 80 . . Melee . | . . . . . . Ramming . | . . . . . . Kinetic 1446 | . 367 519 354 . 206 Thermal 108 | . . . . . 108 Explosive 162 | . 82 . 80 . . Electromagnetic . | . . . . . . Impact . | . . . . . . Slashing . | . . . . . . Piercing . | . . . . . . Highest Corruption 1 | . 1 1 1 1 1 Average Corruption 1 | . 1 1 1 1 1 Corruption Purged . | . . . . . . Corruption Blocked . | . . . . . . Effects 8 | . . 2 2 2 2 Message Errors 1 | . . . . . 1 Matter Fused 3 | . . . 2 1 . Heat Flow Errors 1 | . . . . . 1 Data Loss (minor) 1 | . . 1 . . . Data Loss (major) 1 | . . . . 1 . Misfires 1 | . . 1 . . . Overload Shots . | . . . . . . Overflow Damage . | . . . . . . Projectiles . | . . . . . . Explosions . | . . . . . . Melee . | . . . . . . Knockbacks 11 | . . 1 5 . 5 Impact . | . . . . . . Kinetic 10 | . . 1 5 . 4 Secondary 1 | . . . . . 1 Self-Inflicted Damage 36 | . 36 . . . . Shots 1 | . 1 . . . . Rammed . | . . . . . . Targets Rammed . | . . . . . . Kicked . | . . . . . . Crushed . | . . . . . . Highest Temperature 397 | . 40 44 241 . 397 Average Temperature 79 | . 14 10 127 . 184 Received Heat Transfer 747 | . 219 186 153 . 189 Siege Activations . | . . . . . . Robots Corrupted . | . . . . . . Combat Hostiles . | . . . . . . Parts Fried . | . . . . . . Impact Corruptions . | . . . . . . Robots Melted . | . . . . . . Combat Hostiles . | . . . . . . Parts Melted . | . . . . . . Heat Transferred 259 | . . . . . 259 Parts Sabotaged . | . . . . . . Parts Stolen . | . . . . . . Parts Stripped . | . . . . . . Power Chain Reactions . | . . . . . . Missiles Intercepted . | . . . . . . Alert | -11 -10 -9 -9 -9 -8 ------- Run | Scr Mat Mat Min Exi Min Peak Influence 283 | . 152 283 217 . 34 Initial 109 | . . 63 109 . . Average 100 | . 65 175 163 . 6 Maximum Alert Level 1 | . . 1 1 . . Low Security (%) 92 | 100 100 69 99 . 100 Level 1 7 | . . 30 . . . Level 2 . | . . . . . . Level 3 . | . . . . . . Level 4 . | . . . . . . Level 5 . | . . . . . . High Security . | . . . . . . Max Security . | . . . . . . Squads Dispatched . | . . . . . . Investigation . | . . . . . . Extermination . | . . . . . . Reinforcement . | . . . . . . Assault . | . . . . . . Garrison . | . . . . . . Intercept . | . . . . . . Searches Triggered . | . . . . . . Construction Impeded . | . . . . . . Haulers Reinforced . | . . . . . . Active Scanning Responses . | . . . . . . Cargo Convoy Interrupts . | . . . . . . Stealth | -11 -10 -9 -9 -9 -8 --------- Run | Scr Mat Mat Min Exi Min Distress Signals 1 | . 1 . . . . Communications Jammed . | . . . . . . Distress Signals . | . . . . . . Times Spotted 32 | . 10 9 10 . 3 Peak Tracking Total 8 | . 4 3 8 . 3 Tactical Retreats . | . . . . . . Traps | -11 -10 -9 -9 -9 -8 ------- Run | Scr Mat Mat Min Exi Min Traps Triggered 2 | . 1 1 . . . Indirectly . | . . . . . . Trap Hack Attempts . | . . . . . . Triggered . | . . . . . . Disarmed . | . . . . . . Reprogrammed . | . . . . . . Reused . | . . . . . . Traps Extracted . | . . . . . . Installed . | . . . . . . Triggered . | . . . . . . Machines | -11 -10 -9 -9 -9 -8 ---------- Run | Scr Mat Mat Min Exi Min Machines Disabled 1 | . 1 . . . . Max in Single Turn 1 | . 1 . . . . Machines Sabotaged . | . . . . . . Garrisons Compromised . | . . . . . . Overloaded Fab Kills . | . . . . . . Hacking | -11 -10 -9 -9 -9 -8 --------- Run | Scr Mat Mat Min Exi Min Machines Accessed 10 | . 3 4 . 3 . Terminals 4 | . 2 2 . . . Fabricators . | . . . . . . Repair Stations 1 | . . 1 . . . Recycling Units 1 | . 1 . . . . Scanalyzers 1 | . . 1 . . . Garrison Access . | . . . . . . Total Hacks 39 | . 6 7 . 26 . Successful 34 | . 5 3 . 26 . Failed 5 | . 1 4 . . . Catastrophic . | . . . . . . Database Lockouts . | . . . . . . Manual 4 | . . 2 . 2 . Terminals 9 | . 4 5 . . . Fabricators . | . . . . . . Repair Stations 1 | . . 1 . . . Recycling Units 2 | . 2 . . . . Scanalyzers 1 | . . 1 . . . Garrison Access . | . . . . . . Terminal Hacks 31 | . 3 2 . 26 . Record 26 | . . . . 26 . Prototype ID Bank 1 | . . 1 . . . Recycling Unit Index 1 | . 1 . . . . Locate Traps 1 | . 1 . . . . Transport Status 1 | . 1 . . . . Hauler Manifests 1 | . . 1 . . . Fabricator Hacks . | . . . . . . Repair Station Hacks . | . . . . . . Recycling Unit Hacks 2 | . 2 . . . . Report Inventory 1 | . 1 . . . . Retrieve Components 1 | . 1 . . . . Scanalyzer . | . . . . . . Garrison Access Hacks . | . . . . . . Unauthorized Hacks 1 | . . 1 . . . Terminals . | . . . . . . Fabricators . | . . . . . . Repair Stations . | . . . . . . Recycling Units . | . . . . . . Scanalyzers 1 | . . 1 . . . Researchers 1 | . . 1 . . . Garrison Access . | . . . . . . Data Cores Recovered . | . . . . . . Used . | . . . . . . Hacking Detections 5 | . 2 3 . . . Full Trace Events . | . . . . . . Feedback Events . | . . . . . . Feedback Blocked . | . . . . . . Robot Schematics Acquired . | . . . . . . Robots Built . | . . . . . . Authchips . | . . . . . . Time . | . . . . . . Total Robot Build Rating . | . . . . . . Part Schematics Acquired . | . . . . . . Parts Built . | . . . . . . Authchips . | . . . . . . Time . | . . . . . . Total Part Build Rating . | . . . . . . Parts Repaired . | . . . . . . Time . | . . . . . . Parts Recycled . | . . . . . . Recycled Matter . | . . . . . . Retrieved Matter . | . . . . . . Retrieved Components 4 | . 4 . . . . Parts Scanalyzed . | . . . . . . Part Schematics Acquired . | . . . . . . Parts Damaged . | . . . . . . Bothacking | -11 -10 -9 -9 -9 -8 ------------ Run | Scr Mat Mat Min Exi Min Used RIF Installer . | . . . . . . Robots Hacked . | . . . . . . Non-combat . | . . . . . . Combat . | . . . . . . Robot Hacks Applied . | . . . . . . Relay Couplers Released . | . . . . . . Fabnet Peak Effective % . | . . . . . . Robots Rewired . | . . . . . . Allies Hacked . | . . . . . . Hacks Repelled . | . . . . . . Allies | -11 -10 -9 -9 -9 -8 -------- Run | Scr Mat Mat Min Exi Min Total Allies . | . . . . . . Largest Group . | . . . . . . Highest-Rated Group . | . . . . . . Highest-Rated Ally . | . . . . . . Total Orders . | . . . . . . Ally Attacks . | . . . . . . Total Damage . | . . . . . . Kills . | . . . . . . Allies Corrupted . | . . . . . . Allies Melted . | . . . . . . Intel | -11 -10 -9 -9 -9 -8 ------- Run | Scr Mat Mat Min Exi Min Robot Analysis Total . | . . . . . . Derelict Logs Recovered . | . . . . . . Drone Launches . | . . . . . . Drone Recoveries . | . . . . . . Exploration | -11 -10 -9 -9 -9 -8 ------------- Run | Scr Mat Mat Min Exi Min Turns Passed 1947 | 3 593 394 300 377 280 Spaces Moved 1381 | 3 374 188 240 395 181 Core 6 | . . . 6 . . Treads 2 | . . . 2 . . Legs 488 | 3 374 111 . . . Wheels 885 | . . 77 232 395 181 Hover . | . . . . . . Flight . | . . . . . . Fastest Speed 90 | 120 120 90 90 95 95 Average Speed 110 | 120 122 136 98 95 107 Slowest Speed 250 | 120 190 190 250 95 110 Overloaded Moves . | . . . . . . Propulsion Burnouts . | . . . . . . Robots Hopped . | . . . . . . Cave-ins Triggered . | . . . . . . Exploration Rate (%) 39 | 2 63 22 37 78 36 Regions Visited 5 Branch Regions 3 Pre-discovered Areas . | . . . . . . Known Exits Taken 3 | . . 1 1 1 . Unknown Exits Taken 2 | 1 1 . . . . Scrap Searched . | . . . . . . Spaces Dug 6 | . . 2 . . 4 Terrain Destroyed 30 | . 14 3 8 . 5 Melee . | . . . . . . Projectile 11 | . . 3 3 . 5 AOE 19 | . 14 . 5 . . Terrain Rammed . | . . . . . . Walls Destroyed . | . . . . . . Machines Disabled . | . . . . . . Actions | -11 -10 -9 -9 -9 -8 --------- Run | Scr Mat Mat Min Exi Min Total 1615 | 2 451 263 270 397 232 Wait 43 | . 12 3 . . 28 Move 1376 | 2 373 187 239 394 181 Hop . | . . . . . . Pick Up 12 | . 4 7 . 1 . Fast Attach 15 | . 3 7 4 . 1 Attach 7 | . . 3 1 . 3 Detach 4 | . 1 2 . 1 . Swap 17 | . 11 3 2 . 1 Drop 22 | . 9 11 1 1 . Fire 118 | . 38 40 22 . 18 Melee . | . . . . . . Ram . | . . . . . . Kick . | . . . . . . Crush . | . . . . . . Escape Stasis . | . . . . . . Rewire 1 | . . . 1 . . Trap . | . . . . . . Miscellaneous . | . . . . . . Route ------- -11/Scrapyard -10/Materials (discovered 3 exits: *Mat x2 / [*Min]) -9/Materials (discovered 2 exits: *Min / *Sto) -9/Mines -9/Exiles -8/Mines (discovered 1 exit: *Mat) History --------- Turn | Location | Event 1 | -11/Scrapyard | Discovered new exit (range 3) 4 | -11/Scrapyard | Entered Materials 183 | -10/Materials | Discovered new exit (range 9) 299 | -10/Materials | Discovered new exit (range 15) 309 | -10/Materials | Build established: Mutant 538 | -10/Materials | Discovered new exit (range 16) 597 | -10/Materials | Entered another Materials area 597 | -9/Materials | Evolved 2 slots: Utility x2 705 | -9/Materials | Discovered new exit (range 8) 758 | -9/Materials | Identified exit to Storage 880 | -9/Materials | Build established: Scavenger-Mutant 964 | -9/Materials | Discovered new exit (range 12) 990 | -9/Materials | Identified exit to Mines 991 | -9/Materials | Entered Mines 1009 | -9/Mines | Met a Derelict bent on vengeance 1037 | -9/Mines | Assembled infested the area 1071 | -9/Mines | Core integrity fell below 50% 1093 | -9/Mines | Core integrity fell below 20% 1116 | -9/Mines | Lost 7 parts (1p2n1u3w) 1214 | -9/Mines | Build established: Mutant 1285 | -9/Mines | Discovered new exit (range 5) 1288 | -9/Mines | Identified exit to Exiles 1291 | -9/Mines | Entered Exiles 1316 | -9/Exiles | Met 8R-AWN 1331 | -9/Exiles | Met EX-HEX 1366 | -9/Exiles | Met EX-BIN 1383 | -9/Exiles | Aligned with FarCom system 1384 | -9/Exiles | Given EX-Vault access code 1418 | -9/Exiles | Opened EX-Vault 1422 | -9/Exiles | Found Prototype Device 1454 | -9/Exiles | Warned to stay clear of 0b10 Research branches 1487 | -9/Exiles | Met EX-DEC 1533 | -9/Exiles | Visited The Gauntlet 1657 | -9/Exiles | Discovered new exit (range 14) 1667 | -9/Exiles | Identified exit to Mines 1668 | -9/Exiles | Left Exiles lab with Cloak of Protection 1668 | -9/Exiles | Entered Mines 1675 | -8/Mines | Discovered new exit (range 9) 1685 | -8/Mines | Identified exit to Materials 1948 | -8/Mines | Destroyed by G-50 Soldier with Heavy Laser Last Messages --------------- 01685_ EXIT=IDENTIFIED: MATERIALS 01698_ U-05 Engineer builds a Wall. 01765_ K-01 Serf collects debris. 01842_ M4ALBMWNPGZCZ2OHJUWU>DA 01844_ K-01 Serf cleans the Plasma Injector. 01896_ System corrupted: Heat flow error (+196). 01900_ G-50 Soldier knocked back. 01902_ G-47 Trooper knocked back. 01904_ G-47 Trooper destroyed. 01904_ Mining Laser destroyed. 01908_ Acquired 39 matter. 01911_ Acquired Particle Gun. 01912_ G-47 Trooper knocked back. 01916_ Critical hit (Burn: +37). 01918_ G-47 Trooper destroyed. 01919_ R-06 Scavenger collects Imp. Heat Sink. 01922_ Acquired 2 matter. 01924_ Acquired 38 matter. 01926_ Acquired 1 matter. 01930_ Wheel destroyed. Map ----- +----------------------------------------------------+ | ??????????????????#????????????????????????????? | | ?????????????????# ????????????????????????????? | | ?????????????????#$????????????????????????????? | | ?????????????????# ????????????????????????????? | | ?????????????????# #???????????????????????????? | | ?????????????????# #???????????????????????????? | | ?????????????????# #???????????????????????????? | | ?????????????????# #???????????????????????????? | | ?????????????????# #???????????????????????????? | | ?????????????????# ####????????????????????????? | | ?????????????????# ?????????????????????????? | | ?????????????????# #??????????????????????????? | | ???????????????### #??????????????????????????? | | ??????????????## #??????????????????????????? | | ??????????????# #??????????????????????????? | | ??????????????# ##??????#####??????????????? | | ??????????????# ##????## ##?????????????? | | ??????????????# #????# ##????????????? | | ??????????????## #????# ##???????????? | | ???????????????## #????## #???????????? | | ????????????????# k ##????### #???????????? | | ????????????????# """ ##?????## ##???????????? | | ???????????????## """ #??????# ##????????????? | | ????????????#### """ #??????# #?????????????? | | ???????????## ######### #?????????????? | | ???????##### @% % ## #?????????????? | | ??????## r % ## ####??????????? | | ??????# ###g;# # #??????????? | | ??????# ##?# ## #b""" #??????????? | | ??????## r##??# ## g""" #??????????? | | ???????# # ## ###???# ## g """ #??????????? | | ???????# ###### ####### ##### #??????????? | | ???????# #????# ##?# < #??????????? | | ??????## #????# ###### ### #??????????? | | ?????## #????# ###??## #### ###??????????? | | ?????# ##???# #???# ### #????????????? | | ?????# ###?? #???## ## #????????????? | | ?????# ##?## #????## ## ###??????????? | | ????## """ #??# #?????## ### #??????????? | | ???## """ #?## #?????## ##### #??????????? | | ??## """ ### ####### ###?# ####### ## " | | ??# ##??# " | | ??# #?########## ## " | | ??# #?##?##?????????? | | ?## ### #### ##???????????????? | | ?# ##?#######??## ##????????????????? | | ?# #????????????# ##?????????????????? | | ?# #????????????# #??????????????????? | | ?## ##???????????# ##??????????????????? | | ??### #???????????## ##???????????????????? | +----------------------------------------------------+ Best States ------------- Heat Dissipation 38 Energy Generation 14 Energy Capacity 265 Matter Stores 500 Matter Capacity 500 Sight Range 16 Terrain Scan Density 10 Armor Coverage 150 Power Shielding 33 Evasion (%) 55 Recoil Reduction 1 Authchip Count 3 Item Schematics ----------------- None Robot Schematics ------------------ None Fabricated ------------ Nothing Alien Tech Used ----------------- None Achievements -------------- None Challenges ------------ None Game ------ Seed MatterArmageddonShielding Manual? 0 Play Time 00:28:17 Cumulative 49.4 hours Start 2022.04.14 @ 10:43:30 End 2022.04.14 @ 13:25:20 Sessions 3 Manual Loads 0 Difficulty Rogue Special Mode None Game No. 65 Rogue 61 Adventurer 0 Explorer 4 Win Type - Total 0 Types 0/0/0/0/0/0/0/0/0 Lore% 17 Gallery% 29 Achievement% 26 Wizard Run 0 Options --------- ASCII 0 Keyboard 1 Movement Arrows Keybinds 0 Fullscreen 1 Font 24/Smallcaps Map View 113x50 Tactical HUD 1 Map Filters NONE Filters NONE Steam 1 RUN: 2f14161f-e13c-490e-9686-d6a369e6ae4a